[Event "European Corporate Championship 2022"]
[Site "Rotterdam"]
[Date "2022.06.19"]
[Round "8.17"]
[White "Haast, Mark"]
[Black "Werksma, Arie"]
[Result "1-0"]
[ECO "A22"]
[WhiteElo "2414"]
[BlackElo "2196"]
[Annotator "TA"]
[PlyCount "77"]
[EventDate "2022.06.18"]
[EventType "team-tourn"]
[EventCountry "NED"]
[SourceTitle "playchess.com"]
[Source "ChessBase"]
[SourceQuality "1"]
[TimeControl "900+5"]

{[%evp 14,77,35,35,33,28,33,20,30,14,27,25,47,29,34,31,31,24,40,38,33,17,14,0,0,-10,14,-11,-16,0,23,11,30,32,24,22,21,16,25,0,0,0,0,0,0,0,0,0,0,0,0,0,0,0,22,0,0,0,20,-22,0,0,0,0,29979,-389]} 1. c4 {[%emt 0:00:02]} Nf6 {[%emt 0:00:02]} 2. g3 {[%emt 0:00:01]} d6 {[%emt 0:00:08]} 3. Bg2 {[%emt 0:00:02]} Nbd7 {[%emt 0:00:02]} 4. Nc3 {[%emt 0:00:01]} e5 {[%emt 0:00:12]} 5. d3 {[%emt 0:00:14]} Be7 {[%emt 0:00:05]} 6. e4 {[%emt 0:00:02]} O-O {[%emt 0:00:03]} 7. Nge2 {[%emt 0:00:02]} c6 {[%emt 0:00:01]} 8. O-O {[%emt 0:00:02]} a6 {[%emt 0:00:01] A22: English Opening: 1...e5 2 Nc3 Nf6.} 9. a4 {[%emt 0:00:11] Prevents b5.} a5 {[%emt 0:00:01]} 10. h3 {[%emt 0:00:18]} Nc5 {[%emt 0:00:23] The position is equal.} 11. Be3 {[%emt 0:00:28]} Nfd7 {[%emt 0:00:42] [#]} 12. Rb1 $146 {[%emt 0:00:24]} ({Predecessor:} 12. f4 Bf6 13. Rb1 Na6 14. d4 exd4 15. Nxd4 Nb6 16. b3 Nb4 17. Qd2 g6 18. Rbd1 {½-½ (46) Terrieux,K (2262)-Bazart,D (2221) France 2004}) 12... Qc7 {[%emt 0:03:42]} 13. b3 {[%emt 0:00:17]} Na6 {[%emt 0:00:02]} 14. Qd2 {[%emt 0:00:14]} Ndc5 {[%emt 0:00:33]} 15. d4 {[%emt 0:02:27]} exd4 {[%emt 0:00:28]} 16. Nxd4 {[%emt 0:00:10]} Bd7 {[%emt 0:00:15]} 17. Rfd1 {[%emt 0:01:33][%cal Od4b5]} Rad8 {[%emt 0:00:03]} 18. Kh2 {[%emt 0:04:16]} Bc8 {[%emt 0:00:09]} 19. Nce2 {[%emt 0:02:39][%cal Bc3e2,Be2f4,Bf4d3][%mdl 32]} Nb4 {[%emt 0:00:19]} 20. Nc2 {[%emt 0:00:21]} Nxc2 {[%emt 0:03:03]} 21. Qxc2 {[%emt 0:00:01]} Bf6 {[%emt 0:01:36]} 22. Nf4 {[%emt 0:00:39]} g6 {[%emt 0:01:41]} 23. Nd3 {[%emt 0:00:01]} b6 {[%emt 0:00:58]} 24. f4 {[%emt 0:00:13]} Bg7 {[%emt 0:00:14]} 25. Nxc5 {[%emt 0:00:05]} dxc5 {[%emt 0:00:19]} 26. Rxd8 {[%emt 0:00:35]} Rxd8 {[%emt 0:00:02]} 27. Rd1 {[%emt 0:00:02]} Bd4 {[%emt 0:00:29]} 28. Bc1 {[%emt 0:00:53]} Qe7 {[%emt 0:00:22]} 29. Rf1 {[%emt 0:00:05]} f6 {[%emt 0:00:21]} 30. Qe2 {[%emt 0:00:07]} Kg7 {[%emt 0:00:11]} 31. Qf3 {[%emt 0:00:03]} Bd7 {[%emt 0:00:08]} 32. Rd1 {[%emt 0:00:02]} Be8 {[%emt 0:00:03]} 33. Re1 {[%emt 0:00:07]} b5 {[%emt 0:00:23]} 34. h4 {[%emt 0:00:16][%cal Oe4e5]} (34. e5 $5) 34... bxc4 {[%emt 0:00:07]} 35. bxc4 {[%emt 0:00:01]} Bf7 {[%emt 0:00:01]} 36. Bf1 {[%emt 0:00:02]} (36. e5 $5) 36... Qb7 {[%emt 0:00:04] aiming for ...Qb4.} 37. e5 {[%emt 0:00:03]} fxe5 {[%emt 0:00:08]} 38. fxe5 {[%emt 0:00:01] White wants to mate with Qf6+.} Be6 $2 {[%emt 0:00:04][%mdl 8192] [#]} (38... Re8 $11) 39. Qd1 $4 {[%emt 0:01:20][%mdl 40960] Weighted Error Value: White=0.08 (flawless) /Black=0.21 (precise) . Loss on time!?} (39. Qf6+ {mates} Kg8 40. Qxd8+ Kf7 41. Qf6+ Ke8 42. Bg5 Qd7 43. Rb1 Bg1+ 44. Kh1) 1-0

[Event "European Corporate Championship 2022"]
[Site "Rotterdam"]
[Date "2022.06.19"]
[Round "9.1"]
[White "Barski, Radoslaw"]
[Black "Kanyamarala, Tarun"]
[Result "1-0"]
[ECO "B30"]
[WhiteElo "2434"]
[BlackElo "2388"]
[Annotator "TA"]
[PlyCount "59"]
[EventDate "2022.06.18"]
[EventType "team-tourn"]
[EventCountry "NED"]
[SourceTitle "playchess.com"]
[Source "ChessBase"]
[SourceQuality "1"]
[TimeControl "900+5"]

{[%evp 14,59,18,0,14,10,26,20,20,12,36,35,43,13,41,47,52,0,0,-6,0,-14,0,0,22,45,68,93,129,131,128,123,118,124,238,0,0,6,6,0,56,62,168,164,29988,29989,29998,29999]} 1. e4 {[%emt 0:00:02]} c5 {[%emt 0:00:01]} 2. Nc3 {[%emt 0:00:03]} Nc6 {[%emt 0:00:04]} 3. Nf3 {[%emt 0:00:02]} e5 {[%emt 0:00:02]} 4. Bc4 {[%emt 0:00:02]} Be7 {[%emt 0:00:03]} 5. d3 {[%emt 0:00:08]} d6 {[%emt 0:00:03]} 6. O-O {[%emt 0:00:21]} Nf6 {[%emt 0:00:02]} 7. Ng5 {[%emt 0:00:11]} O-O {[%emt 0:00:03]} 8. f4 {[%emt 0:00:02]} Bg4 {[%emt 0:00:07] B30: Sicilian: 2...Nc6 3 Bb5, lines without ...g6.} 9. Qe1 {[%emt 0:00:37]} exf4 {[%emt 0:00:42]} 10. Bxf4 {[%emt 0:01:57]} ({But not} 10. Rxf4 h6 11. Nf3 g5 12. Rxg4 Nxg4 $15) 10... Nd4 {[%emt 0:00:33] The position is equal.} 11. Qd2 {[%emt 0:00:46]} Be6 {[%emt 0:00:02]} 12. Nxe6 {[%emt 0:00:20]} fxe6 {[%emt 0:00:03] [#]} 13. a3 $146 {[%emt 0:00:23]} (13. Ne2 $5 {[%cal Re2d4]}) ({Predecessor:} 13. Rae1 Nd7 14. Ne2 Nxe2+ 15. Qxe2 Rf6 16. Qg4 Nf8 17. Bg3 Rg6 18. Qh5 Qe8 19. c3 {1-0 (58) Brozyna,M (2175)-Rodriguez Izquierdo,L (2007) Bratislava 2019}) 13... d5 {[%emt 0:00:48]} 14. exd5 {[%emt 0:00:14]} Nxd5 {[%emt 0:03:52]} 15. Bxd5 {[%emt 0:05:24]} ({Better is} 15. Nxd5 $14 exd5 16. Ba2) 15... exd5 $11 {[%emt 0:00:06]} 16. Be5 {[%emt 0:00:04]} Nf5 {[%emt 0:01:34]} 17. d4 {[%emt 0:01:18]} Bg5 {[%emt 0:01:29]} 18. Qd3 {[%emt 0:00:16]} Be3+ {[%emt 0:00:48]} 19. Kh1 {[%emt 0:00:01]} c4 {[%emt 0:00:02]} 20. Qe2 {[%emt 0:00:48][%cal Of1f5]} Bg5 {[%emt 0:02:08] [#]} 21. Qg4 $1 {[%emt 0:00:25]} g6 {[%emt 0:00:27] [#]} 22. Nxd5 $1 {[%emt 0:01:52][%mdl 512] White is more active.} Qxd5 {[%emt 0:00:12]} 23. Qxg5 {[%emt 0:00:01]} Nxd4 {[%emt 0:00:28] [#]} (23... Rf7 $16) 24. Qe7 $2 {[%emt 0:00:58]} (24. Rf6 $1 $18 {[%cal Rf6g6] White wants to mate with Rxg6+!} Qe4 25. Rxf8+ Rxf8 26. Qe7) 24... Ne6 {[%emt 0:00:25]} 25. Bc3 {[%emt 0:00:07]} Rae8 {[%emt 0:00:19]} 26. Qh4 {[%emt 0:00:11]} Ng7 {[%emt 0:01:41]} (26... Nc5 $11) 27. Rfd1 $40 {[%emt 0:00:11][%mdl 128] White has some attack.} ({Much weaker is} 27. Qh6 Rxf1+ 28. Rxf1 Nf5 $11) 27... Qe4 {[%emt 0:00:12]} (27... Qc6 $14) 28. Rd7 $18 {[%emt 0:00:26]} Rf7 {[%emt 0:00:40] [#]} (28... Nh5 $18 29. Qxe4 Rxe4) 29. Rxf7 $1 {[%emt 0:00:03]} Kxf7 {[%emt 0:00:27]} (29... Nh5 30. Qf2) 30. Qf6+ {[%emt 0:00:02] Weighted Error Value: White=0.26 (precise) /Black=0.64} 1-0

[Event "European Corporate Championship 2022"]
[Site "Rotterdam"]
[Date "2022.06.19"]
[Round "9.2"]
[White "Flynn, Jacob"]
[Black "Celinski, Kamil"]
[Result "1-0"]
[ECO "A57"]
[WhiteElo "2205"]
[BlackElo "1907"]
[Annotator "TA"]
[PlyCount "77"]
[EventDate "2022.06.18"]
[EventType "team-tourn"]
[EventCountry "NED"]
[SourceTitle "playchess.com"]
[Source "ChessBase"]
[SourceQuality "1"]
[TimeControl "900+5"]

{[%evp 9,77,66,62,52,55,54,93,66,73,46,74,52,56,45,47,33,42,39,112,109,99,102,198,200,193,162,204,207,208,208,272,220,309,294,368,327,435,412,705,397,627,134,205,161,182,166,182,166,207,162,317,286,385,378,413,379,511,463,480,433,1177,1191,1291,1263,2291,2284,2486,2393,2240,2199]} 1. d4 {[%emt 0:00:03]} Nf6 {[%emt 0:00:01]} 2. c4 {[%emt 0:00:01]} c5 {[%emt 0:00:02]} 3. d5 {[%emt 0:00:10]} b5 {[%emt 0:00:02]} 4. Qc2 {[%emt 0:00:09]} Qa5+ {[%emt 0:00:45]} 5. Nd2 {[%emt 0:00:19]} b4 {[%emt 0:00:05]} 6. b3 {[%emt 0:01:25] A57: Benko/Volga Gambit.} g6 {[%emt 0:01:17]} 7. Bb2 {[%emt 0:00:04] [#]} Qb6 $146 {[%emt 0:00:30]} ({Predecessor:} 7... Bg7 8. e4 d6 9. f4 O-O 10. Ngf3 Nbd7 11. Bd3 Re8 12. O-O e6 13. dxe6 Rxe6 {1-0 (22) Riline Orso,A (2162)-De la Vega,R (1449) Asuncion 2017}) 8. e4 {[%emt 0:00:17] Black must now prevent e5. White is better.} d6 {[%emt 0:00:13]} 9. Bd3 {[%emt 0:01:12]} Nbd7 {[%emt 0:00:23]} 10. Ngf3 {[%emt 0:00:05]} Bg7 {[%emt 0:00:02]} 11. O-O {[%emt 0:00:36]} O-O {[%emt 0:00:04]} 12. h3 {[%emt 0:00:02]} Qc7 {[%emt 0:01:58]} 13. Rfe1 {[%emt 0:00:08]} Ne5 {[%emt 0:01:54] White now steadily converts the win.} (13... a5 $14) 14. Nxe5 $16 {[%emt 0:04:29]} dxe5 {[%emt 0:00:01]} 15. a3 {[%emt 0:00:08]} a5 {[%emt 0:00:41]} (15... e6 $16) 16. axb4 $18 {[%emt 0:00:14]} cxb4 {[%emt 0:00:08]} 17. c5 {[%emt 0:00:11][%cal Bc4c5,Bc5c6][%mdl 32]} Nh5 {[%emt 0:00:13]} 18. Bf1 {[%emt 0:01:34]} Nf4 {[%emt 0:00:35]} 19. Rec1 {[%emt 0:00:56]} h5 {[%emt 0:00:12]} 20. c6 {[%emt 0:00:28]} h4 {[%emt 0:01:01]} (20... Rd8 $142 21. h4 e6) 21. Qc5 {[%emt 0:00:20]} g5 {[%emt 0:01:21]} 22. f3 {[%emt 0:00:13]} Rd8 {[%emt 0:01:40]} 23. Nc4 {[%emt 0:00:04]} Ba6 {[%emt 0:00:18]} (23... f5 $142 24. Rxa5 Rxa5 25. Qxa5 Qxa5 26. Nxa5 fxe4 27. fxe4 g4) 24. Nb6 {[%emt 0:00:46]} Ra7 {[%emt 0:01:17]} (24... Bxf1 $142 25. Nxa8 (25. Rxf1 Ra6 $16) 25... Rxa8 26. Rxf1 Ne2+ 27. Kh2 Nd4) 25. Na4 $2 {[%emt 0:02:30] [#]} (25. Rxa5 $18 {and White stays clearly on top.} Bxf1 26. Rxa7 (26. Rxf1 Nd3 $11) 26... Qxa7 27. c7 (27. Rxf1 Nd3 $11)) 25... Bxf1 {[%emt 0:00:29]} (25... e6 $16 {was called for.}) 26. Rxf1 {[%emt 0:00:01]} Ne2+ {[%emt 0:00:22]} 27. Kh2 {[%emt 0:00:05]} Nd4 {[%emt 0:00:19]} 28. Qc4 {[%emt 0:00:10]} Qd6 {[%emt 0:00:39]} 29. Bc1 {[%emt 0:00:05]} Qf6 {[%emt 0:00:21]} (29... Bf6) 30. Be3 {[%emt 0:00:00]} Rc7 {[%emt 0:00:16]} 31. Nb6 {[%emt 0:00:24]} Qd6 {[%emt 0:00:22]} 32. Rxa5 {[%emt 0:00:06]} Rb8 {[%emt 0:00:04]} 33. Nd7 {[%emt 0:00:04] White is clearly winning.} Rd8 {[%emt 0:00:03]} 34. Nc5 {[%emt 0:00:13] [#] Strongly threatening Nb7.} Bf8 {[%emt 0:00:07]} (34... Qf6 $142 35. Qxb4 Nc2) 35. Nb7 {[%emt 0:00:01]} Rxb7 {[%emt 0:00:06]} 36. cxb7 {[%emt 0:00:01]} Kg7 {[%emt 0:00:14]} 37. Ra8 {[%emt 0:00:03]} Rb8 {[%emt 0:00:00]} 38. Rxb8 {[%emt 0:00:02]} Qxb8 {[%emt 0:00:00]} 39. Qc8 {[%emt 0:00:01] Weighted Error Value: White=0.47/Black=0.58} 1-0

[Event "European Corporate Championship 2022"]
[Site "Rotterdam"]
[Date "2022.06.19"]
[Round "9.3"]
[White "Wisniewski, Jacek"]
[Black "Melaugh, Shane"]
[Result "1/2-1/2"]
[ECO "C10"]
[WhiteElo "1850"]
[BlackElo "2087"]
[Annotator "NA RC"]
[PlyCount "113"]
[EventDate "2022.06.18"]
[EventType "team-tourn"]
[EventCountry "NED"]
[SourceTitle "playchess.com"]
[Source "ChessBase"]
[SourceQuality "1"]
[TimeControl "900+5"]

1. e4 {[%emt 0:00:02]} e6 {[%emt 0:00:01]} 2. d4 {[%emt 0:00:03]} d5 {[%emt 0:00:02]} 3. Nd2 {[%emt 0:00:04]} dxe4 {[%emt 0:00:03]} 4. Nxe4 {[%emt 0:00:03]} Nf6 {[%emt 0:00:02]} 5. Bd3 {[%emt 0:00:09]} Nbd7 {[%emt 0:00:15]} 6. Qe2 {[%emt 0:00:11]} Be7 {[%emt 0:00:04]} 7. Nf3 {[%emt 0:00:23]} b6 {[%emt 0:00:03]} 8. Bd2 {[%emt 0:01:01]} Bb7 {[%emt 0:00:06]} 9. O-O-O {[%emt 0:00:34]} a5 {[%emt 0:00:34]} 10. Ne5 {[%emt 0:00:30]} O-O {[%emt 0:00:32]} 11. h4 {[%emt 0:01:16]} a4 {[%emt 0:00:24]} 12. Bg5 {[%emt 0:01:49]} Nd5 {[%emt 0:00:30]} 13. Qh5 {[%emt 0:01:43]} g6 {[%emt 0:00:22]} 14. Qh6 {[%emt 0:00:28]} N5f6 {[%emt 0:02:33]} 15. Nxd7 {[%emt 0:01:50]} Nxd7 {[%emt 0:01:04]} 16. h5 {[%emt 0:00:44]} Bxe4 {[%emt 0:00:06]} 17. Bxe7 {[%emt 0:00:03]} Qxe7 {[%emt 0:00:01]} 18. Bxe4 {[%emt 0:00:19]} Ra5 {[%emt 0:00:02]} 19. hxg6 {[%emt 0:00:15]} fxg6 {[%emt 0:00:02]} 20. Bxg6 {[%emt 0:00:21]} Qg5+ {[%emt 0:00:07]} 21. Qxg5 {[%emt 0:00:11]} Rxg5 {[%emt 0:00:02]} 22. Bxh7+ {[%emt 0:00:08]} Kg7 {[%emt 0:00:01]} 23. Be4 {[%emt 0:00:10]} Nf6 {[%emt 0:00:01]} 24. Bf3 {[%emt 0:00:09]} Nd5 {[%emt 0:00:59]} 25. Rh4 {[%emt 0:00:35]} Rff5 {[%emt 0:00:41]} 26. Rdh1 {[%emt 0:00:10]} Nf6 {[%emt 0:00:01]} 27. c3 {[%emt 0:00:15]} Kf7 {[%emt 0:00:39]} 28. Rh8 {[%emt 0:00:31]} a3 {[%emt 0:00:02]} 29. bxa3 {[%emt 0:00:09]} Ra5 {[%emt 0:00:03]} 30. Kb2 {[%emt 0:00:16]} Rgb5+ {[%emt 0:00:01]} 31. Kc2 {[%emt 0:00:13]} Rxa3 {[%emt 0:00:02]} 32. Rc8 {[%emt 0:00:26]} Rxa2+ {[%emt 0:00:08]} 33. Kd3 {[%emt 0:00:02]} c5 {[%emt 0:01:00]} 34. Rc7+ {[%emt 0:00:03]} Kg6 {[%emt 0:00:03]} 35. Re1 {[%emt 0:00:57]} cxd4 {[%emt 0:00:10]} 36. Kxd4 {[%emt 0:00:24]} Kf5 {[%emt 0:00:18]} 37. g4+ {[%emt 0:00:35]} Nxg4 {[%emt 0:00:30]} 38. Bxg4+ {[%emt 0:00:22]} Kxg4 {[%emt 0:00:01]} 39. Rxe6 {[%emt 0:00:15]} Rxf2 {[%emt 0:00:09]} 40. Rg6+ {[%emt 0:00:14]} Kf5 {[%emt 0:00:53]} 41. Rf7+ {[%emt 0:00:11]} Kxg6 {[%emt 0:00:02]} 42. Rxf2 {[%emt 0:00:01]} Rc5 {[%emt 0:00:02]} 43. Rb2 {[%emt 0:00:04]} Rc6 {[%emt 0:00:03]} 44. c4 {[%emt 0:00:03]} Kf6 {[%emt 0:00:02]} 45. Kd5 {[%emt 0:00:01]} Rc5+ {[%emt 0:00:01]} 46. Kd4 {[%emt 0:00:03]} Rc6 {[%emt 0:00:02]} 47. Re2 {[%emt 0:00:02]} Rd6+ {[%emt 0:00:04]} 48. Kc3 {[%emt 0:00:02]} Re6 {[%emt 0:00:03]} 49. Rd2 {[%emt 0:00:23]} Ke7 {[%emt 0:00:02]} 50. Kb4 {[%emt 0:00:04]} Rd6 {[%emt 0:00:02]} 51. Rh2 {[%emt 0:00:10]} Rc6 {[%emt 0:00:24]} 52. Rh5 {[%emt 0:00:05]} Kd6 {[%emt 0:00:02]} 53. Kb5 {[%emt 0:00:07]} Rc5+ {[%emt 0:00:34]} 54. Rxc5 {[%emt 0:00:02]} bxc5 {[%emt 0:00:01]} 55. Kb6 {[%emt 0:00:03]} Kd7 {[%emt 0:00:01]} 56. Kxc5 {[%emt 0:00:03]} Kc7 {[%emt 0:00:01]} 57. Kd5 {[%emt 0:00:04]} 1/2-1/2

[Event "European Corporate Championship 2022"]
[Site "Rotterdam"]
[Date "2022.06.19"]
[Round "9.4"]
[White "Dayanand Kanyamarala"]
[Black "Basiaga, Sebastian"]
[Result "0-1"]
[ECO "D00"]
[WhiteElo "1142"]
[BlackElo "1749"]
[Annotator "NA RC"]
[PlyCount "78"]
[EventDate "2022.06.18"]
[EventType "team-tourn"]
[EventCountry "NED"]
[SourceTitle "playchess.com"]
[Source "ChessBase"]
[SourceQuality "1"]
[TimeControl "900+5"]

1. d4 {[%emt 0:00:05]} d5 {[%emt 0:00:02]} 2. e3 {[%emt 0:00:07]} Nf6 {[%emt 0:00:08]} 3. Bd3 {[%emt 0:00:11]} c6 {[%emt 0:00:13]} 4. c3 {[%emt 0:00:03]} Bg4 {[%emt 0:00:10]} 5. Qc2 {[%emt 0:01:02]} Nbd7 {[%emt 0:00:16]} 6. Nd2 {[%emt 0:00:05]} e5 {[%emt 0:00:07]} 7. f3 {[%emt 0:01:10]} Be6 {[%emt 0:00:35]} 8. Ne2 {[%emt 0:01:48]} Bd6 {[%emt 0:00:22]} 9. Qd1 {[%emt 0:00:22]} Qc7 {[%emt 0:00:21]} 10. Bc2 {[%emt 0:00:21]} O-O {[%emt 0:01:05]} 11. O-O {[%emt 0:00:04]} exd4 {[%emt 0:00:11]} 12. f4 {[%emt 0:00:37]} dxe3 {[%emt 0:00:20]} 13. Nf3 {[%emt 0:00:38]} Ne4 {[%emt 0:00:50]} 14. Bxe3 {[%emt 0:00:54]} f5 {[%emt 0:00:47]} 15. Qe1 {[%emt 0:01:39]} Be7 {[%emt 0:00:51]} 16. Ned4 {[%emt 0:01:17]} Qd6 {[%emt 0:00:27]} 17. Rd1 {[%emt 0:01:27]} Ndf6 {[%emt 0:01:35]} 18. Ne5 {[%emt 0:00:36]} Rae8 {[%emt 0:00:54]} 19. Bxe4 {[%emt 0:00:49]} Nxe4 {[%emt 0:00:19]} 20. Rd3 {[%emt 0:02:00]} Bf6 {[%emt 0:00:31]} 21. Nxe6 {[%emt 0:00:28]} Qxe6 {[%emt 0:00:08]} 22. Bd4 {[%emt 0:00:03]} c5 {[%emt 0:00:15]} 23. Be3 {[%emt 0:00:16]} Bxe5 {[%emt 0:00:31]} 24. fxe5 {[%emt 0:00:02]} Qxe5 {[%emt 0:00:10]} 25. Bf4 {[%emt 0:00:05]} Qe6 {[%emt 0:00:06]} 26. Rh3 {[%emt 0:00:17]} g6 {[%emt 0:00:33]} 27. Qh4 {[%emt 0:00:02]} Qf7 {[%emt 0:00:24]} 28. Bh6 {[%emt 0:00:06]} Qf6 {[%emt 0:00:49]} 29. Qxf6 {[%emt 0:00:06]} Rxf6 {[%emt 0:00:02]} 30. Rd3 {[%emt 0:00:14]} g5 {[%emt 0:00:25]} 31. Bxg5 {[%emt 0:00:16]} Nxg5 {[%emt 0:00:02]} 32. Rxd5 {[%emt 0:00:05]} b6 {[%emt 0:00:16]} 33. h4 {[%emt 0:00:13]} Ne4 {[%emt 0:00:14]} 34. Re1 {[%emt 0:00:10]} Re7 {[%emt 0:00:16]} 35. Rd8+ {[%emt 0:00:03]} Kg7 {[%emt 0:00:03]} 36. Re3 {[%emt 0:00:17]} f4 {[%emt 0:00:36]} 37. Rf3 {[%emt 0:00:06]} Ng3 {[%emt 0:00:24]} 38. Rdd3 {[%emt 0:00:05]} Re1+ {[%emt 0:00:13]} 39. Kf2 {[%emt 0:00:02]} Rf1# {[%emt 0:00:07]} 0-1

[Event "European Corporate Championship 2022"]
[Site "Rotterdam"]
[Date "2022.06.19"]
[Round "9.6"]
[White "Geldhof, Alexander"]
[Black "Lambrechts, Koen"]
[Result "0-1"]
[ECO "B13"]
[WhiteElo "1833"]
[BlackElo "2349"]
[Annotator "TA"]
[PlyCount "92"]
[EventDate "2022.06.18"]
[EventType "team-tourn"]
[EventCountry "NED"]
[SourceTitle "playchess.com"]
[Source "ChessBase"]
[SourceQuality "1"]
[TimeControl "900+5"]

{[%evp 9,92,12,25,29,46,33,43,45,45,44,60,51,58,23,45,34,45,3,155,156,162,98,81,-39,61,0,0,0,0,0,34,33,38,35,34,34,31,38,38,35,42,28,58,43,54,39,129,120,168,158,181,62,196,207,332,347,333,285,516,15,11,13,8,8,11,-16,-16,-124,-124,-127,-122,-122,-134,-306,-297,-312,-312,-332,-318,-403,-402,-458,-438,-5093,-336]} 1. e4 {[%emt 0:00:02]} c6 {[%emt 0:00:02]} 2. Nf3 {[%emt 0:00:02]} d5 {[%emt 0:00:28]} 3. exd5 {[%emt 0:00:05]} cxd5 {[%emt 0:00:01]} 4. d4 {[%emt 0:00:04]} Nf6 {[%emt 0:01:20]} 5. Bf4 {[%emt 0:00:48]} e6 {[%emt 0:00:28]} 6. Bd3 {[%emt 0:00:42] B13: Caro-Kann: Exchange Variation and Panov-Botvinnik Attack.} Be7 {[%emt 0:00:10]} 7. Nbd2 {[%emt 0:00:20] [#]} Qb6 $146 {[%emt 0:00:25]} ({Predecessor:} 7... Nc6 8. c3 a6 9. Ne5 Nxe5 10. dxe5 Ne4 11. Nxe4 dxe4 12. Bxe4 Qc7 13. O-O Bd7 14. Qf3 Rb8 15. Qg3 Bf8 16. Be3 {1-0 (45) De Juan Rivas,A (1523)-Mateos Cordero,F (1601) Alcorcon 2019}) 8. Nb3 {[%emt 0:00:36] White is slightly better.} a5 {[%emt 0:00:31]} 9. a4 {[%emt 0:01:31]} Nc6 {[%emt 0:00:05]} 10. O-O {[%emt 0:00:58]} O-O {[%emt 0:00:29]} 11. Bb5 {[%emt 0:00:24]} Ne4 {[%emt 0:00:16]} 12. c3 {[%emt 0:00:37]} Bd7 {[%emt 0:00:18]} 13. Nfd2 {[%emt 0:00:34]} Rfd8 $2 {[%emt 0:02:47]} (13... Nxd2 $1 $11 14. Bxd2 (14. Nxd2 Nb8 $11) 14... Bd6) 14. Nxe4 $16 {[%emt 0:01:08]} dxe4 {[%emt 0:00:01]} 15. Qe2 {[%emt 0:00:38]} (15. Nd2 $1 $18) 15... Na7 {[%emt 0:00:45][%cal Ra7b5]} 16. Bxd7 {[%emt 0:01:28]} (16. Bc4 $16) 16... Rxd7 {[%emt 0:00:02]} (16... Qxb3 $15 17. Bb5 Nxb5 18. axb5 a4) 17. Nc5 {[%emt 0:00:58]} ({White should play} 17. Qc2 $14) 17... Bxc5 $11 {[%emt 0:00:17]} 18. dxc5 {[%emt 0:00:01]} Qxc5 {[%emt 0:00:01]} 19. Qxe4 {[%emt 0:00:24]} Qd5 {[%emt 0:00:09]} 20. Qxd5 {[%emt 0:00:27]} Rxd5 {[%emt 0:00:02]} 21. Rfd1 {[%emt 0:00:19]} Rad8 {[%emt 0:00:11]} 22. Rxd5 {[%emt 0:00:03]} Rxd5 $14 {[%emt 0:00:01][%mdl 4096] Endgame KRB-KRN} 23. Kf1 {[%emt 0:00:12]} Nc6 {[%emt 0:00:07]} 24. Ke2 {[%emt 0:00:25]} Kf8 {[%emt 0:02:20]} 25. Rd1 {[%emt 0:00:21]} Rf5 {[%emt 0:00:11]} 26. Bd6+ {[%emt 0:00:17]} Ke8 $1 {[%emt 0:00:03]} 27. b4 {[%emt 0:00:27]} h5 {[%emt 0:01:13]} (27... axb4 $14 28. cxb4 Ne7) 28. b5 $16 {[%emt 0:00:37]} Ne5 {[%emt 0:00:12]} (28... Ne7 $16) 29. Bc7 $1 $18 {[%emt 0:00:54]} Nc4 {[%emt 0:00:02]} 30. Rd8+ {[%emt 0:00:08]} Ke7 {[%emt 0:00:11]} 31. Rb8 {[%emt 0:00:08]} Rd5 {[%emt 0:01:51]} (31... Kd7 $142 32. Rxb7 Kc8) 32. Rxb7 {[%emt 0:00:26]} Rd2+ {[%emt 0:00:08]} 33. Ke1 {[%emt 0:00:20] Hoping for Bxa5+.} Rd7 $2 {[%emt 0:01:20]} (33... Kf6 34. Ra7 Rb2 35. Bd8+ Ke5 36. Rxf7 Ke4) 34. b6 $2 {[%emt 0:00:11]} ({White should try} 34. Ra7 $18) 34... Nxb6 $1 $11 {[%emt 0:00:04]} 35. Bd8+ {[%emt 0:00:41]} Kxd8 {[%emt 0:00:13]} 36. Rxb6 {[%emt 0:00:01] KR-KR} Rc7 {[%emt 0:00:01]} 37. Kd2 {[%emt 0:00:06]} Rc4 {[%emt 0:00:03]} 38. Kc2 {[%emt 0:00:31]} (38. Rb5 $11) 38... Rxa4 $17 {[%emt 0:00:04] And now ...Ra2+ would win.} 39. Kb3 {[%emt 0:00:01] Prevents Ra2.} Rf4 {[%emt 0:00:08] Black is more active.} 40. f3 {[%emt 0:00:03]} h4 {[%emt 0:00:07][%cal Bh5h4,Bh4h3][%mdl 32] ...h3! is the strong threat.} 41. Rb5 $2 {[%emt 0:00:11] [#]} (41. h3 $17) 41... a4+ $1 $19 {[%emt 0:00:21]} 42. Ka3 {[%emt 0:00:02] [#]} h3 $1 {[%emt 0:00:03]} 43. Rg5 {[%emt 0:00:06]} g6 {[%emt 0:00:03]} 44. gxh3 {[%emt 0:00:18]} Rxf3 {[%emt 0:00:02]} 45. Rg3 {[%emt 0:00:01]} Rf4 {[%emt 0:00:36]} 46. Rg4 {[%emt 0:00:05]} (46. Rg5 $142) 46... e5 $2 {[%emt 0:00:14] What a fight!  Weighted Error Value: White=0.57/Black=0.31} (46... Rxg4 47. hxg4 f5) 0-1